{"text_format":"3","workbook":"xlsx","n_sheets":1,"sheets":["预算 (并线)"],"not_rendered":{"defined_names":1},"read":"whole","date_system":"1900"}

{"sheet":"预算 (并线)","index":0,"n_rows":27,"n_cols":8,"rows_kept":27,"merged":[[0,0,0,7],[2,0,2,5],[14,0,14,5],[23,1,23,5]]}
["金凯工业园15#厂房、公租房火灾报警控制器整改报价表"]
["序号","名称","规格及型号","单位","数量","综合单价","金额","备注"]
["      一、15#厂房",{"$nulls":5},{"$f":"SUM(G4:G14)","v":13045.41}]
[1,"火灾报警控制主机","JB-TG-TC5200（琴台式）","台",1,6000,{"$f":"E4*F4","v":6000},"总部楼监控室内安装，辽宁营口天成消防设备"]
[2,"光纤收发器","深圳市惠佳光网科技有限公司NET LINK,HTB-1100S-25A（或不低于同级别以上产品）","台",2,290,580,"总部楼监控室与15#厂房消防控制室联网通讯"]
[3,"2芯光纤","15#厂房至总部楼监控室通讯2芯光纤（一用一备）","米",504,1.5,756,"采用光纤联网监控火灾报警控制器"]
[4,"光纤套管及PVCØ16管内穿线","PVCØ16","米",504,2,1008,"沿园区围栏、路面绿化带埋地铺设"]
[5,"管线埋绿化带（水沟）敷设，绿化带挖沟、恢复","挖0.2*0.2米","米",71,2.3,163.3]
[6,"管线埋地路面开槽、混泥土路面恢复\n","路面开槽规格：深40㎜*宽80㎜），水泥砂浆回填","米",27,30.25,816.75,"15#厂房控制室至园区围墙（栏）埋地敷设，围墙上明敷线管，经过园区大门埋地敷设，围墙（栏）至总部大楼监控室埋地或沿水沟（电缆沟）敷设"]
[7,"管线埋地路面开槽、混泥土路面恢复\n","路面开槽规格：深40㎜*宽30㎜），水泥砂浆回填","米",24,27.14,651.36,"15#厂房控制室至园区围墙（栏）埋地敷设，围墙上明敷线管，经过园区大门埋地敷设，围墙（栏）至总部大楼监控室埋地或沿水沟（电缆沟）敷设"]
[8,"原系统电脑图形显示器拆除、安装，搬迁至总部楼监控室内安装","TCCRT-5104（琴台式）","台",1,835,835,"使用原系统图形显示器，含搬运、调试"]
[9,"电脑图形显示联网通讯卡安装",null,"块",1,100,100,"与火灾报警控制器通讯"]
[10,"报警监视主机电源线路安装",null,"台",1,500,500,"就近接入原有消防电源"]
[11,"营口天成消防设备火灾自动报警系统调试",null,"套",1,1635,1635,"厂家技术人员现场调试设备"]
["     二、公租房",{"$nulls":5},{"$f":"SUM(G16:G23)","v":39628.52}]
[1,"总部楼监控室内安装火灾自动报警控制器（2000点以内）","成都安吉斯智能设备JB-LG-GEC9000","台",1,33600,{"$f":"E16*F16","v":33600},"立柜式，含调试费。"]
[2,"光纤收发器安装","深圳市惠佳光网科技有限公司NET LINK,HTB-1100S-25A（或不低于同级别以上产品）","台",2,290,580,"\n总部楼监控室与公租房消防控制室联网通讯"]
[3,"2芯光纤","公租房至总部楼监控室通讯（一用一备）","米",697,1.5,1045.5,"采用光纤联网监控火灾报警控制器"]
[4,"光纤套管及PVCØ16管内穿线","PVCØ16","米",697,2,1394,"沿园区围栏、路面、绿化带埋地铺设"]
[5,"管线埋绿化带（水沟）敷设，绿化带挖沟、恢复","挖0.2*0.2米","米",186,2.3,427.8]
[6,"管线埋地路面开槽、混泥土路面恢复","路面开槽规格：深40㎜*宽30㎜），水泥砂浆回填","米",73,27.14,1981.22,"沿围墙（栏）绿化带埋地、水沟、电缆沟敷设至总部楼监控室"]
[7,"报警监视主机电源线路安装",null,"台",1,500,500,"就近接入原有消防电源"]
[8,"电脑图形显示联网通讯卡安装",null,"块",1,100,100,"与火灾报警控制器通讯"]
[null,"合计",{"$nulls":4},{"$f":"SUM(G3+G15)","v":52673.93}]
[]
[null,null,"报价单位："]
[null,null,"日期："]